bitfinex/quotes_ETHUSD_20250807
["timestamp","ask_amount","ask_price","bid_price","bid_amount"]
[1754590502904,4.67422914,3817.4,3817.3,3.11075263]
[1754590503302,0.56422914,3817.4,3817.3,3.72722132]
[1754590503624,0.56422914,3817.4,3817.3,4.16142132]
[1754590503924,0.56422914,3817.4,3817.3,7.16142132]
[1754590504112,0.56422914,3817.4,3817.3,11.27242132]
[1754590504325,0.002,3817.4,3817.3,11.27242132]
[1754590504693,0.002,3817.4,3817.3,11.82242132]
[1754590505915,0.002,3817.4,3817.3,24.93977813]
[1754590507607,1e-08,3817.4,3817.3,24.93977813]
[1754590508227,1e-08,3817.4,3817.3,20.82877813]
[1754590508438,1e-08,3817.4,3817.3,6.23612132]
[1754590508640,1e-08,3817.4,3817.3,5.61965263]
[1754590508823,1e-08,3817.4,3817.3,6.11075263]
[1754590509232,1e-08,3817.4,3817.3,23.76830944]
[1754590509550,1e-08,3817.4,3817.3,24.31830944]
[1754590510310,1e-08,3817.4,3817.3,10.21775263]
[1754590510558,1e-08,3817.4,3817.3,11.50150129]
[1754590511247,1e-08,3817.4,3817.3,11.01040129]
[1754590511449,1e-08,3817.4,3817.3,2.61965263]
[1754590511749,0.43830001,3817.4,3817.0,4.107]
[1754590511936,0.43830001,3817.4,3817.3,2.61965263]
[1754590511937,1e-08,3817.4,3817.3,2.61965263]
[1754590512135,0.4383,3817.3,3816.8,3.0]
[1754590512445,0.4383,3817.3,3816.8,4.26345701]
[1754590512656,0.4383,3817.3,3817.2,2.61972126]
[1754590513558,1e-08,3817.4,3817.3,2.61965263]
[1754590514046,1e-08,3817.4,3817.2,2.61966242]
[1754590514361,0.43830001,3817.4,3817.3,2.61965263]
[1754590514838,1e-08,3817.4,3817.3,2.61965263]
[1754590516747,0.99995814,3817.4,3816.7,3.0]
[1754590516956,0.99995814,3817.4,3817.1,2.61975977]
[1754590516957,0.43830001,3817.4,3817.1,2.61975977]
[1754590517117,1e-08,3817.4,3817.1,2.61975977]
[1754590517451,0.99997044,3817.3,3817.0,2.61984649]
[1754590517654,0.4383,3817.3,3816.9,2.61991671]
[1754590517822,0.4383,3817.3,3817.0,2.6198421]
[1754590518942,0.4383,3817.3,3816.8,2.61997801]
[1754590518943,0.4383,3817.3,3817.1,2.61976771]
[1754590519336,1e-08,3817.4,3817.1,2.61976771]
[1754590519532,0.56179181,3817.3,3817.2,2.61972126]
[1754590519942,0.56179181,3817.3,3817.0,0.4911]
[1754590520152,1e-08,3817.4,3817.2,2.61972126]
[1754590520333,0.56171693,3817.3,3817.1,3.11084461]
[1754590520666,1e-08,3817.4,3817.2,2.61972121]
[1754590520868,0.56172197,3817.3,3817.1,3.11087865]
[1754590521066,0.4383,3817.3,3816.8,2.61998666]
[1754590521234,0.4383,3817.3,3816.7,0.4911]
[1754590521564,0.4383,3817.3,3816.9,2.61991601]
[1754590521773,0.4383,3817.3,3816.6,4.102]
[1754590522066,0.4383,3817.2,3817.0,2.61985543]
[1754590522240,1e-08,3817.4,3817.1,2.61978989]
[1754590522448,0.56128338,3817.3,3817.1,2.61978989]
[1754590522647,1e-08,3817.4,3817.1,2.61978989]
[1754590522965,0.56128412,3817.3,3817.1,3.11086659]
[1754590523157,1e-08,3817.4,3817.2,0.4911]
[1754590523336,0.56133093,3817.3,3817.2,0.4911]
[1754590523852,0.56133093,3817.3,3817.0,2.61981028]
[1754590524058,0.56133093,3817.2,3817.0,2.61981028]
[1754590524236,1e-08,3817.4,3817.1,2.61978867]
[1754590524464,0.56147991,3817.3,3817.1,0.4911]
[1754590524667,1e-08,3817.4,3817.2,0.4911]
[1754590524883,1e-08,3817.4,3817.3,2.61965263]
[1754590525089,0.56149413,3817.4,3817.3,2.61965263]
[1754590525502,0.56149413,3817.4,3817.2,3.11081159]
[1754590525699,0.56149412,3817.3,3817.2,3.11081159]
[1754590526013,0.56149412,3817.3,3817.2,3.11082126]
[1754590526666,0.56149412,3817.3,3817.2,0.4911]
[1754590526865,0.99979412,3817.3,3816.7,4.27]
[1754590527070,0.56149412,3817.2,3816.7,4.27]
[1754590527271,0.4383,3817.3,3816.7,4.27]
[1754590527272,0.4383,3817.3,3817.0,2.61984749]
[1754590527599,0.56163177,3817.2,3817.1,2.61978989]
[1754590527985,0.56163177,3817.2,3817.1,0.4708]
[1754590529176,0.99813177,3817.2,3816.8,2.6199526]
[1754590529375,5.08513177,3817.1,3815.9,0.001]
[1754590529678,2.62031839,3816.4,3815.9,0.001]
[1754590529903,4.092,3816.3,3815.9,0.001]
[1754590530081,2.62040773,3816.2,3815.9,0.001]
[1754590530400,0.56149943,3816.1,3815.9,0.001]
[1754590530601,0.56149943,3816.0,3815.9,0.001]
[1754590532171,0.56070462,3816.0,3815.9,3.09241374]
[1754590532377,0.56041859,3816.2,3815.9,0.4718]
[1754590532589,0.56041859,3816.1,3815.9,0.4718]
[1754590532902,4.09,3816.3,3815.9,0.001]
[1754590533108,0.56037851,3816.2,3815.9,0.001]
[1754590533273,0.56037851,3816.1,3815.9,0.001]
[1754590533470,0.4365,3816.2,3815.9,0.001]
[1754590533674,0.56008464,3816.1,3815.9,0.001]
[1754590533930,3.18062971,3816.0,3815.9,0.001]
[1754590534436,3.05704507,3816.0,3815.9,0.001]
[1754590534629,3.64988652,3816.0,3815.9,0.001]
[1754590534774,3.61712971,3816.0,3815.9,0.001]
[1754590535106,2.02933978,3816.0,3815.9,0.001]
[1754590535308,4.64988485,3816.0,3815.9,0.001]
[1754590535609,8.74588485,3816.0,3815.9,0.001]
[1754590535973,6.12533978,3816.0,3815.9,0.001]
[1754590536311,7.71312971,3816.0,3815.9,0.001]
[1754590537803,10.71312971,3816.0,3815.9,0.001]
[1754590538112,10.95584783,3816.0,3815.9,0.001]
[1754590538609,6.85984783,3816.0,3815.9,0.001]
[1754590538914,10.95284783,3816.0,3815.9,0.001]
[1754590539212,12.31017384,3816.0,3815.9,0.001]
[1754590539973,12.06745572,3816.0,3815.9,0.001]
[1754590540178,12.31002341,3816.0,3815.9,0.001]
[1754590540604,12.3109747,3816.0,3815.9,0.001]
[1754590541301,12.31093668,3816.0,3815.9,0.001]
[1754590543328,8.21693668,3816.0,3815.9,0.001]
[1754590543547,12.30993668,3816.0,3815.9,0.001]
[1754590544475,12.30993668,3816.0,3814.7,0.001]
[1754590544476,3.1713694,3814.8,3814.7,0.001]
[1754590544767,6.18145404,3814.8,3814.7,0.001]
[1754590544974,0.69128464,3814.8,3814.7,0.4718]
[1754590545169,4.2262,3814.8,3814.7,0.4718]
[1754590545467,4.46849493,3814.8,3814.7,0.4718]
[1754590546024,4.2262,3814.8,3814.7,0.4718]
[1754590546225,4.2252,3814.8,3814.7,0.4718]
[1754590546530,0.1312,3814.8,3814.7,0.4718]
[1754590546736,0.1312,3814.8,3814.7,3.55993812]
[1754590546927,4.096,3814.8,3814.7,3.55993812]
[1754590547127,4.096,3814.8,3814.7,0.9385]
[1754590547331,4.096,3814.8,3814.7,0.4718]
[1754590547582,4.096,3814.8,3814.7,0.001]
[1754590547854,7.8868043,3814.8,3814.7,1e-08]
[1754590548229,12.0068043,3814.8,3814.7,1e-08]
[1754590549055,12.00676922,3814.8,3814.7,1e-08]
[1754590549865,25.59492603,3814.8,3814.7,1e-08]
[1754590550156,3.0,3814.1,3813.0,0.4708]
[1754590550361,3.0,3813.9,3813.2,0.4708]
[1754590550520,2.62220265,3813.6,3813.2,0.4708]
[1754590550730,0.55816037,3813.5,3813.2,0.4708]
[1754590550931,0.55816037,3813.4,3813.3,0.4708]
[1754590551135,4.67716037,3813.4,3813.3,0.4708]
[1754590551634,5.4947327,3813.4,3813.3,0.4708]
[1754590551834,2.62240054,3813.3,3812.4,0.4708]
[1754590552049,3.18066772,3813.2,3812.4,0.9375]
[1754590552250,7.30076043,3813.1,3812.4,0.9375]
[1754590552465,0.55816037,3813.0,3812.4,0.9375]
[1754590552668,0.55816037,3812.9,3812.5,3.09369268]
[1754590552854,0.55816037,3812.9,3812.4,0.4667]
[1754590552855,4.67816037,3812.8,3812.6,3.56037952]
[1754590553058,0.47853604,3813.3,3812.7,0.9375]
[1754590553374,0.47853604,3813.3,3812.6,2.62287952]
[1754590553375,0.55669208,3813.2,3812.6,0.4708]
[1754590553546,2.62269199,3812.9,3812.6,0.4708]
[1754590553752,4.68569208,3812.8,3812.7,0.4708]
[1754590554068,0.55669208,3812.8,3812.6,0.4667]
[1754590554386,4.68469208,3812.7,3812.6,0.4667]
[1754590554566,4.68469208,3812.7,3812.6,0.9375]
[1754590554875,0.55669208,3812.7,3812.6,0.9375]
[1754590555036,14.5,3812.7,3812.6,3.56038202]
[1754590555237,0.787975,3813.7,3813.0,2.62256463]
[1754590555539,0.79823284,3813.6,3812.7,0.9375]
[1754590555860,19.185451,3813.5,3812.9,2.62267565]
[1754590556063,0.556451,3813.4,3813.3,2.62240054]
[1754590556369,0.79833637,3813.4,3813.3,3.55990054]
[1754590556737,0.556451,3813.4,3813.3,3.55990054]
[1754590557774,4.127,3814.2,3813.8,2.62205674]
[1754590558084,6.298,3814.9,3814.8,2.6213694]
[1754590558240,10.80542699,3814.9,3814.8,0.9608]
[1754590558440,10.67422699,3814.9,3814.8,3.5821694]
[1754590558793,10.431,3814.9,3814.8,3.5821694]
[1754590558959,4.133,3814.9,3814.8,3.5821694]
[1754590559656,4.133,3814.9,3814.8,0.9608]
[1754590560045,4.133,3814.9,3814.8,0.4981]
[1754590560245,4.2642,3814.9,3814.5,2.62152314]
[1754590560444,0.1312,3814.7,3814.6,3.58230684]
[1754590560649,2.62089618,3815.5,3814.7,2.62141222]
[1754590560846,0.1312,3814.9,3814.8,0.4981]
[1754590561073,4.2612,3814.9,3814.8,0.4981]
[1754590561490,0.1312,3814.9,3814.8,3.5821694]
[1754590561655,4.13,3814.9,3814.8,3.5821694]
[1754590561982,14.5,3815.4,3815.3,2.62102586]
[1754590562152,4.3727348,3815.4,3815.3,0.9608]
[1754590564257,4.3727348,3815.4,3815.3,0.4981]
[1754590565774,4.37308361,3815.4,3815.3,0.4981]
[1754590566586,4.3730676,3815.4,3815.3,0.4981]
[1754590568371,18.63,3815.4,3815.3,0.4981]
[1754590569703,19.18959026,3815.4,3815.3,0.4981]
[1754590571070,19.17959026,3815.4,3815.3,0.4981]
[1754590572091,19.17659026,3815.4,3815.3,0.4981]
[1754590573102,4.67559026,3815.4,3815.3,0.9608]
[1754590573304,0.55959026,3815.4,3815.3,3.58182586]
[1754590573510,4.67359026,3815.4,3815.3,3.58182586]
[1754590573889,0.55959026,3815.4,3815.3,3.58182586]
[1754590574208,4.67359026,3815.4,3815.3,3.95312845]
[1754590574578,4.67359026,3815.4,3815.3,1.33210259]
[1754590574777,4.67359026,3815.4,3815.3,0.9608]
[1754590575389,4.67359026,3815.4,3815.3,3.58182586]
[1754590576316,4.114,3815.4,3815.3,3.58182586]
[1754590576511,0.002,3815.6,3815.3,0.9608]
[1754590576712,0.55914681,3815.5,3815.4,3.58175717]
[1754590576878,4.11,3815.5,3815.4,4.20203473]
[1754590577076,4.11,3815.5,3815.4,4.33323473]
[1754590577879,0.002,3815.6,3815.5,2.62088848]
[1754590578084,0.002,3816.1,3816.0,3.17054507]
[1754590578296,4.111,3816.4,3816.3,2.62033907]
[1754590578515,4.111,3816.4,3816.3,3.71233907]
[1754590581381,4.111,3816.4,3816.3,0.6293]
[1754590581579,4.111,3816.4,3815.9,3.1312]
[1754590582013,4.111,3816.4,3816.0,0.4981]
[1754590582213,6.73131867,3816.4,3816.0,0.4981]
[1754590582393,4.2422,3816.4,3816.0,0.4981]
[1754590583317,4.2422,3816.4,3816.1,0.4981]
[1754590583617,14.5,3816.3,3816.2,0.4981]
[1754590583825,14.5,3816.3,3816.2,2.62040773]
[1754590583984,18.605,3816.3,3816.2,2.62040773]
[1754590584184,18.605,3816.3,3816.2,2.75160773]
[1754590584391,4.105,3816.3,3815.9,3.1187076]
[1754590584637,4.105,3816.2,3816.0,0.6293]
[1754590584842,0.1312,3816.5,3816.2,2.62040773]
[1754590585052,0.56014659,3817.3,3816.9,2.61988667]
[1754590585252,4.66914659,3817.2,3816.9,2.61992576]
[1754590585565,0.56014659,3817.1,3817.0,0.4981]
[1754590585917,4.66914659,3817.1,3817.0,0.4981]
[1754590586222,4.66914659,3817.1,3816.7,0.4981]
[1754590586421,0.56014659,3817.0,3816.7,2.62006445]
[1754590586731,0.56014659,3816.9,3816.8,0.4981]
[1754590587560,0.56014659,3816.9,3816.8,3.1180958]
[1754590587965,0.56014659,3816.9,3816.8,3.5807958]
[1754590588432,0.56014659,3816.9,3816.8,3.1180958]
[1754590588628,0.56014659,3816.9,3816.8,3.5477958]
[1754590588846,0.56014659,3816.9,3816.8,3.1180958]
[1754590589042,0.56014659,3816.9,3816.8,3.5477958]
[1754590589262,4.103,3817.0,3816.9,2.61992716]
[1754590589462,1e-08,3817.4,3816.9,2.61992716]
[1754590589463,1e-08,3817.4,3817.3,2.61965263]
[1754590589638,4.6654303,3817.4,3817.3,2.61965263]
[1754590589839,4.6654303,3817.4,3817.3,4.07145678]
[1754590589840,0.5614303,3817.4,3817.3,4.07145678]
[1754590590044,1e-08,3817.4,3817.3,4.62145678]
[1754590591338,1e-08,3817.4,3817.3,4.07145678]
[1754590592363,1e-08,3817.4,3817.3,17.73881359]
[1754590592991,1e-08,3817.4,3817.3,20.73881359]
[1754590593648,0.002,3818.7,3818.1,3.16910374]
[1754590593848,0.002,3818.7,3818.1,16.28646055]
[1754590594085,0.56066534,3818.5,3818.1,21.30086055]
[1754590594295,0.002,3818.7,3818.1,21.30086055]
[1754590594858,0.002,3818.7,3818.1,21.43206055]
[1754590595649,1e-08,3818.2,3818.1,24.43206055]
[1754590595850,0.002,3818.7,3818.5,6.16882938]
[1754590596150,0.002,3818.7,3818.5,5.75002938]
[1754590596396,0.002,3818.7,3818.5,6.23072938]
[1754590597882,0.002,3818.7,3818.5,11.31542938]
[1754590598689,0.002,3818.7,3818.6,2.6187608]
[1754590598855,0.002,3818.7,3818.6,21.85182796]
[1754590599293,0.002,3818.7,3818.6,25.96082796]
[1754590599737,0.002,3818.7,3818.6,7.27407115]
[1754590600334,0.002,3818.7,3818.6,1.65531035]
[1754590600506,0.002,3818.7,3818.6,16.41731761]
[1754590600702,0.002,3818.7,3818.6,17.32771761]
[1754590601201,0.002,3818.7,3818.6,3.7806608]
[1754590601817,0.002,3818.7,3818.6,7.8886608]
[1754590602037,0.002,3818.7,3818.6,21.43571761]
[1754590602214,0.002,3818.7,3818.6,27.11959689]
[1754590602410,1e-08,3818.7,3818.6,27.11959689]
[1754590602638,0.002,3819.1,3819.0,6.16848651]
[1754590602838,0.002,3819.1,3819.0,10.28048651]
[1754590603012,0.002,3819.1,3819.0,11.32208651]
[1754590603211,0.56024207,3819.1,3819.0,12.71615197]
[1754590603425,0.56024207,3819.1,3819.0,11.25575197]
[1754590603629,0.56024207,3819.1,3819.0,9.86168651]
[1754590603946,0.56024207,3819.1,3819.0,0.1312]
[1754590603947,0.99944207,3819.1,3819.0,0.1312]
[1754590604752,0.99944207,3819.1,3818.7,0.1312]
[1754590604951,0.55824207,3819.0,3818.8,2.61855756]
[1754590605118,0.55824207,3818.9,3818.8,2.61855756]
[1754590605518,0.55824207,3818.9,3818.8,3.09925756]
[1754590605713,0.55824207,3818.9,3818.8,4.23417415]
[1754590605960,0.55824207,3818.9,3818.8,7.66387415]
[1754590607428,0.55824207,3818.9,3818.8,2.61855756]
[1754590608020,0.99744207,3818.9,3818.7,4.4012]
[1754590608251,0.99744207,3818.8,3818.7,0.1312]
[1754590608422,4.37491057,3818.8,3818.3,0.1312]
[1754590608620,0.55824207,3818.7,3818.3,0.1312]
[1754590608853,0.55824207,3818.6,3818.3,0.1312]
[1754590609178,0.55824207,3818.6,3818.4,2.61888671]
[1754590609179,0.55824207,3818.5,3818.4,2.61888671]
[1754590609350,0.55824207,3818.5,3818.3,0.1312]
[1754590609675,0.55824207,3818.4,3818.3,0.1312]
[1754590609818,0.99744207,3818.4,3817.3,0.4807]
[1754590610024,0.99744207,3818.4,3817.1,4.27]
[1754590610025,2.61909294,3818.2,3817.6,0.1312]
[1754590610241,2.61917234,3818.0,3817.3,2.61964296]
[1754590610446,19.54507626,3817.9,3817.4,0.1312]
[1754590610640,0.55824207,3817.8,3817.4,0.1312]
[1754590610850,0.55824207,3817.7,3817.4,0.1312]
[1754590611069,0.55824207,3817.6,3817.4,0.1312]
[1754590611234,0.55824207,3817.6,3817.2,2.61972043]
[1754590611235,0.55824207,3817.5,3817.2,2.61972043]
[1754590611435,0.55824207,3817.4,3817.2,0.1312]
[1754590611669,0.55923148,3817.3,3817.2,0.1312]
[1754590611968,0.55923148,3817.3,3817.2,5.75092078]
[1754590612676,0.55923148,3817.3,3817.2,3.1312]
[1754590612967,0.99843148,3817.3,3817.0,3.0]
[1754590613173,0.55923148,3817.2,3817.0,3.1312]
[1754590613369,0.55923148,3817.1,3817.0,2.75105852]
[1754590614458,0.55923148,3817.1,3817.0,4.11693339]
[1754590614851,0.55923148,3817.1,3817.0,4.54663339]
[1754590615241,0.55923148,3817.1,3817.0,4.11693339]
[1754590615437,0.55923148,3817.1,3817.0,3.63623339]
[1754590615972,0.99843148,3817.1,3816.9,4.27]
[1754590616147,0.99843148,3817.1,3816.5,2.62018813]
[1754590616148,0.55923148,3817.0,3816.8,0.1312]
[1754590616353,0.55923148,3817.0,3816.6,4.27]
[1754590616354,0.55923148,3816.9,3816.7,2.62006445]
[1754590616555,4.109,3817.2,3816.7,2.75126445]
[1754590616751,0.80301041,3817.1,3816.7,2.75126445]
[1754590616955,0.56000772,3817.0,3816.7,2.75126445]
[1754590617164,0.56000772,3816.9,3816.7,2.75126445]
[1754590617365,4.109,3817.2,3816.8,0.4807]
[1754590617570,0.56011775,3817.1,3816.9,3.10061042]
[1754590617873,0.56011775,3817.0,3816.9,3.42401104]
[1754590618075,0.56011775,3817.0,3816.9,2.61991042]
[1754590618285,0.56011775,3817.0,3816.9,0.4572]
[1754590618660,0.56011775,3817.0,3816.9,3.07712716]
[1754590618983,0.56011775,3817.0,3816.9,3.20832716]
[1754590619888,0.56011775,3817.0,3816.9,3.66542716]
[1754590620089,0.56011775,3817.0,3816.9,5.13156685]
[1754590620400,0.56011775,3817.0,3816.9,5.68156685]
[1754590620990,0.56011775,3817.0,3816.9,4.67446685]
[1754590621280,0.56011775,3817.0,3816.9,0.1312]
[1754590621481,0.56011775,3817.0,3816.9,0.5884]
[1754590621695,0.56011775,3817.0,3816.9,3.20832716]
[1754590621899,0.63484719,3817.5,3817.0,2.61984433]
[1754590622220,0.83558173,3817.4,3817.1,0.1312]
[1754590622350,2.6200556,3816.8,3816.2,3.4582]
[1754590622552,0.55972756,3816.7,3816.3,0.1312]
[1754590622747,4.2352,3816.9,3816.3,0.1312]
[1754590623073,2.62033907,3816.3,3816.2,0.001]
[1754590623252,3.31125771,3816.3,3816.2,0.001]
[1754590623448,5.25681864,3816.3,3816.2,0.001]
[1754590624389,0.69091864,3816.3,3816.2,0.001]
[1754590624790,0.55971864,3816.3,3816.2,0.001]
[1754590625286,0.1312,3816.4,3816.2,0.001]
[1754590625689,4.104,3816.5,3816.2,0.001]
[1754590625856,4.104,3816.5,3816.2,0.4582]
[1754590626070,4.102,3816.7,3816.3,0.4572]
[1754590626412,4.102,3816.7,3816.4,0.9143]
[1754590626413,0.55853605,3816.6,3816.4,0.9143]
[1754590626626,0.55853605,3816.6,3816.4,3.0774487]
[1754590626925,4.102,3816.7,3816.4,0.4572]
[1754590627083,4.102,3816.7,3816.2,0.001]
[1754590627084,3.64246033,3816.6,3816.2,0.001]
[1754590627423,2.75147511,3816.4,3816.2,0.001]
[1754590627621,0.1312,3816.4,3816.2,0.001]
[1754590627977,0.68961068,3816.4,3816.2,0.001]
[1754590628181,3.08023907,3816.3,3816.2,0.001]
[1754590628489,3.46049921,3816.3,3816.2,0.001]
[1754590629421,4.02290989,3816.3,3816.2,0.001]
[1754590629771,0.55841068,3816.3,3816.2,0.001]
[1754590629966,4.79161068,3816.3,3816.2,0.001]
[1754590630202,0.1312,3816.3,3816.2,0.001]
[1754590630522,4.2362,3816.3,3816.2,0.001]
[1754590630718,4.2362,3816.3,3816.2,0.4582]
[1754590630869,0.55841068,3816.6,3816.2,3.07855318]
[1754590631084,4.105,3816.5,3816.3,0.4572]
[1754590631295,4.105,3816.5,3816.4,0.4572]
[1754590632125,0.1312,3816.6,3816.4,0.4572]
[1754590632327,4.105,3816.5,3816.4,0.4572]
[1754590632634,0.1312,3816.6,3816.2,0.001]
[1754590632835,4.103,3816.5,3816.2,0.4582]
[1754590633185,3.17832514,3816.5,3816.2,0.001]
[1754590633381,4.102,3816.4,3816.2,0.001]
[1754590633935,4.102,3816.3,3816.2,0.001]
[1754590634138,0.5583771,3816.4,3816.2,0.001]
[1754590634326,4.102,3816.3,3816.2,0.4582]
[1754590634642,0.1312,3816.4,3816.2,0.4582]
[1754590634934,4.103,3816.3,3816.2,0.4582]
[1754590637007,4.101,3816.3,3816.2,0.4582]
[1754590637903,4.1,3816.6,3816.2,0.4582]
[1754590638244,2.61949329,3817.6,3816.9,2.6199054]
[1754590638409,4.90315933,3817.4,3816.9,2.6199054]
[1754590638733,0.80315933,3817.3,3817.2,2.61972126]
[1754590638939,0.56003898,3817.3,3817.2,0.4572]
[1754590639287,4.1,3817.4,3817.2,0.4572]
[1754590639748,4.1,3817.4,3817.1,2.75093701]
[1754590639899,4.1,3817.4,3817.3,0.4572]
[1754590640105,4.66034788,3817.4,3817.1,0.1312]
[1754590640323,4.1,3817.4,3817.3,0.4572]
[1754590640543,4.66058401,3817.4,3817.3,0.4572]
[1754590640734,4.66058401,3817.4,3817.1,0.1312]
[1754590640938,4.1,3817.4,3817.1,0.1312]
[1754590641121,3.31145364,3817.3,3816.7,0.1312]
[1754590641322,0.56054765,3817.2,3816.7,0.1312]
[1754590641523,2.75090599,3817.3,3816.7,0.1312]
[1754590641524,0.56054765,3817.1,3816.7,0.1312]
[1754590641720,4.65954765,3817.0,3816.7,0.1312]
[1754590641922,0.56054765,3816.9,3816.8,0.4572]
[1754590642328,0.56054765,3816.9,3816.7,0.1312]
[1754590642532,0.56054765,3816.8,3816.7,0.1312]
[1754590643339,0.56054765,3816.8,3816.7,0.5884]
[1754590645241,1.79398053,3816.8,3816.2,0.001]
[1754590645405,4.65354765,3816.7,3816.2,0.1322]
[1754590645610,0.56054765,3816.6,3816.2,0.1322]
[1754590645862,0.56054765,3816.5,3816.3,0.4572]
[1754590646018,4.094,3816.4,3816.3,0.4572]
[1754590646460,4.094,3816.4,3816.3,3.07753907]
[1754590646956,4.094,3816.4,3816.3,0.4572]
[1754590647162,4.65491755,3816.4,3816.2,0.1322]
[1754590647344,0.56091755,3816.3,3816.2,0.1322]
[1754590647852,0.56091755,3816.3,3816.2,3.20980773]
[1754590649571,0.56091755,3816.3,3816.2,0.5894]
[1754590651261,0.56091755,3816.3,3816.2,3.20980773]
[1754590651469,0.56091755,3816.3,3816.2,3.49762387]
[1754590651759,0.56091755,3816.3,3816.2,20.16498068]
[1754590651925,0.24346494,3817.0,3816.9,2.61992716]
[1754590652114,0.80452572,3817.0,3816.9,3.22042716]
[1754590652319,0.80452572,3817.0,3816.9,3.80447065]
[1754590653269,0.80452572,3817.0,3816.9,1.18454349]
[1754590653429,0.56106078,3817.0,3816.9,3.80447065]
[1754590653640,0.80457538,3817.0,3816.9,3.80447065]
[1754590654715,0.80457538,3817.0,3816.9,1.18454349]
[1754590654921,0.80457538,3817.0,3816.9,0.6005]
[1754590655226,0.80457538,3817.0,3816.9,3.22042716]
[1754590656166,4.084,3817.2,3817.1,2.61978989]
[1754590656385,4.64514723,3817.2,3817.1,3.08908989]
[1754590656592,0.56114723,3817.2,3817.1,3.22028989]
[1754590656747,0.56114723,3817.2,3817.1,3.80431159]
[1754590657176,4.084,3817.4,3817.3,2.61965263]
[1754590657379,0.56112012,3817.4,3817.3,3.08895263]
[1754590657549,0.56112012,3817.4,3817.3,3.86254905]
[1754590657961,0.56112012,3817.4,3817.3,1.24289642]
[1754590658158,0.56112012,3817.4,3817.3,0.6005]
[1754590658345,0.56112012,3817.4,3817.3,3.22015263]
[1754590658549,0.1312,3818.1,3817.6,2.61944677]
[1754590658751,0.80464277,3818.0,3817.4,0.4693]
[1754590658980,0.56108236,3817.9,3817.8,2.61930955]
[1754590659181,0.56108236,3817.9,3817.8,3.21980955]
[1754590659476,0.56108236,3817.9,3817.8,4.06568105]
[1754590659659,4.081,3818.2,3818.1,2.61910374]
[1754590659861,4.64208197,3818.2,3818.1,0.4693]
[1754590660198,4.64208197,3818.2,3818.1,3.21960374]
[1754590660505,0.56108197,3818.2,3818.1,3.21960374]
[1754590660657,0.56108197,3818.2,3818.1,3.88807534]
[1754590661301,4.081,3818.3,3818.1,3.88807534]
[1754590661668,4.081,3818.3,3818.2,2.61903514]
[1754590661867,0.56090246,3818.5,3818.4,2.61889796]
[1754590662074,0.56099528,3818.8,3818.7,2.61865783]
[1754590662395,0.56099528,3818.8,3818.7,3.08795783]
[1754590662700,0.56099528,3818.8,3818.7,3.21919222]
[1754590662900,0.56099528,3818.8,3818.7,0.6005]
[1754590663303,0.56099528,3819.0,3818.7,0.6005]
[1754590663604,4.63899528,3818.9,3818.7,0.6005]
[1754590663812,0.56099528,3818.8,3818.7,0.4693]
[1754590664011,1.03559528,3818.8,3818.4,0.65069047]
[1754590664168,1.03559528,3818.8,3818.6,0.1312]
[1754590664368,0.56099528,3818.8,3818.6,0.1312]
[1754590664761,2.61884147,3818.5,3817.8,3.46512625]
[1754590664961,4.5526,3818.4,3817.9,2.6191954]
[1754590665165,4.5526,3818.4,3817.9,2.7503954]
[1754590665706,4.5526,3818.4,3817.9,0.1312]
[1754590665707,0.4746,3818.3,3817.9,0.1312]
[1754590666000,3.09361542,3818.3,3817.9,0.1312]
[1754590666204,0.4746,3818.2,3817.9,0.1312]
[1754590666792,4.078,3818.4,3817.9,2.75043443]
[1754590666991,4.078,3818.4,3818.0,0.4693]
[1754590667204,4.078,3818.4,3818.0,3.08846322]
[1754590667501,4.075,3818.3,3818.1,0.9355]
[1754590667667,4.075,3818.3,3818.2,0.1312]
[1754590668502,4.5496,3818.3,3817.8,0.4693]
[1754590668701,4.075,3818.3,3817.8,0.1312]
[1754590668891,0.4746,3818.2,3817.8,0.1312]
[1754590669091,4.075,3818.3,3817.8,2.75049915]
[1754590669290,4.075,3818.2,3818.1,0.1312]
[1754590669502,0.1312,3818.9,3818.1,1.0667]
[1754590669812,4.075,3818.6,3818.5,2.61882337]
[1754590670020,0.56075105,3818.9,3818.5,3.55432337]
[1754590670206,4.076,3818.8,3818.6,0.9355]
[1754590670504,4.076,3818.8,3818.7,3.21913913]
[1754590670966,4.076,3818.8,3818.7,3.8495621]
[1754590671617,4.076,3818.8,3818.7,1.23092297]
[1754590672315,4.076,3818.8,3818.7,0.76162297]
[1754590672483,4.076,3818.8,3818.7,3.84961519]
[1754590672985,4.076,3818.8,3818.7,1.23092297]
[1754590673702,4.076,3818.8,3818.7,3.84961519]
[1754590674214,4.076,3818.8,3818.7,0.76162297]
[1754590674418,4.076,3818.8,3818.7,0.1312]
[1754590674719,4.072,3818.8,3818.7,3.21919222]
[1754590674878,4.071,3818.8,3818.7,0.1312]
[1754590676097,4.071,3818.8,3818.7,3.68536477]
[1754590676292,4.071,3818.8,3818.7,4.74278412]
[1754590676615,4.071,3818.8,3818.7,1.65791935]
[1754590677197,4.071,3818.8,3818.7,0.6005]
[1754590677898,4.071,3818.8,3818.7,3.21919222]
[1754590678610,0.002,3819.1,3818.7,3.6860502]
[1754590678611,4.067,3818.9,3818.7,3.6860502]
[1754590678814,4.067,3818.9,3818.8,3.10612365]
[1754590679018,4.067,3818.9,3818.8,3.57302365]
[1754590679229,4.067,3818.9,3818.8,3.10612365]
[1754590679437,4.067,3818.9,3818.8,0.4875]
[1754590680135,4.067,3818.9,3818.8,3.10612365]
[1754590680296,4.067,3818.9,3818.8,4.16542851]
[1754590680491,4.067,3818.9,3818.8,4.63232851]
[1754590680896,0.56323683,3819.1,3819.0,2.61848651]
[1754590681220,0.002,3819.1,3819.0,2.61848651]
[1754590681421,0.002,3819.1,3819.0,7.25408651]
[1754590681597,0.002,3819.1,3819.0,9.80676579]
[1754590681932,0.002,3819.1,3819.0,9.93796579]
[1754590683506,0.002,3819.1,3819.0,8.92106579]
[1754590683732,0.002,3819.1,3819.0,3.23718651]